[Event "GER-chT Youth Countries 2020"]
[Site "Berlin"]
[Date "2020.10.04"]
[Round "7"]
[White "Bardorz, Jana"]
[Black "Zhou, Lepu Coco"]
[Result "1/2-1/2"]
[ECO "C55"]
[WhiteElo "1960"]
[BlackElo "1872"]
[Annotator "ChessBase"]
[PlyCount "98"]
[EventDate "2020.09.30"]
[EventType "team-tourn"]
[EventRounds "7"]
[EventCountry "GER"]
[SourceTitle "playchess.com"]
[Source "ChessBase"]
[SourceQuality "1"]
[TimeControl "30/5400+30:0"]

1. e4 {[%emt 0:00:00]} e5 {[%emt 0:00:00]} 2. Nf3 {[%emt 0:00:00]} Nc6 {[%emt 0:00:00]} 3. Bc4 {[%emt 0:00:00]} Nf6 {[%emt 0:00:01]} 4. d3 {[%emt 0:00:00]} Be7 {[%emt 0:00:20]} 5. O-O {[%emt 0:00:29]} O-O {[%emt 0:00:15]} 6. Re1 {[%emt 0:00:08]} d6 {[%emt 0:00:10]} 7. a4 {[%emt 0:00:08]} h6 {[%emt 0:01:39]} 8. Nbd2 {[%emt 0:03:34]} Be6 {[%emt 0:00:50]} 9. a5 {[%emt 0:03:37]} a6 {[%emt 0:07:10]} 10. h3 {[%emt 0:05:27]} Nd7 {[%emt 0:07:12]} 11. Nf1 {[%emt 0:05:22]} Bxc4 {[%emt 0:09:06]} 12. dxc4 {[%emt 0:00:09]} f5 {[%emt 0:00:41]} 13. exf5 {[%emt 0:02:28]} Rxf5 {[%emt 0:01:08]} 14. Ng3 {[%emt 0:05:28]} Rf7 {[%emt 0:02:09]} 15. Ra3 {[%emt 0:04:27]} Nf6 {[%emt 0:08:52]} 16. Rd3 {[%emt 0:09:31]} Qc8 {[%emt 0:04:50]} 17. Bd2 {[%emt 0:07:05]} Qe6 {[%emt 0:03:02]} 18. Nd4 {[%emt 0:05:55]} Nxd4 {[%emt 0:02:22]} 19. Rxd4 {[%emt 0:00:07]} c5 {[%emt 0:01:17]} 20. Rd3 {[%emt 0:02:47]} Qxc4 {[%emt 0:03:52]} 21. Nf5 {[%emt 0:01:53]} Qe6 {[%emt 0:00:43]} 22. Nxe7+ {[%emt 0:02:24]} Rxe7 {[%emt 0:05:01]} 23. Bc3 {[%emt 0:02:04]} Rd7 {[%emt 0:01:29]} 24. f4 {[%emt 0:03:55]} c4 {[%emt 0:07:38]} 25. Rd2 {[%emt 0:07:16]} e4 {[%emt 0:02:30]} 26. Bxf6 gxf6 {[%emt 0:01:15]} 27. Rd5 {[%emt 0:04:09]} f5 {[%emt 0:01:13]} 28. Re3 {[%emt 0:03:37]} Qg6 {[%emt 0:03:42]} 29. Qd4 {[%emt 0:04:04]} Rc8 {[%emt 0:02:17]} 30. g4 {[%emt 0:05:40]} fxg4 {[%emt 0:03:06]} 31. Rg3 {[%emt 1:30:45]} Kh7 {[%emt 1:31:20]} 32. Rxg4 {[%emt 0:00:55]} Qe6 {[%emt 0:03:59]} 33. f5 {[%emt 0:03:36]} Qf7 {[%emt 0:00:45]} 34. Rxd6 {[%emt 0:01:58]} Rxd6 {[%emt 0:00:10]} 35. Qxd6 {[%emt 0:00:08]} Rg8 {[%emt 0:00:21]} 36. Qf4 {[%emt 0:03:27]} Rxg4+ {[%emt 0:00:57]} 37. hxg4 {[%emt 0:00:06]} Qd5 {[%emt 0:00:45]} 38. Kf2 {[%emt 0:02:34]} Qxa5 {[%emt 0:04:30]} 39. Qxe4 {[%emt 0:00:38]} Qb6+ {[%emt 0:03:32]} 40. Kf3 {[%emt 0:00:53]} Qf6 {[%emt 0:03:46]} 41. Qxb7+ {[%emt 0:01:13]} Kg8 {[%emt 0:02:04]} 42. Qd5+ {[%emt 0:00:00]} Kg7 {[%emt 0:00:00]} 43. c3 {[%emt 0:00:00]} Qh4 {[%emt 0:00:00]} 44. Qe5+ {[%emt 0:00:00]} Kf8 {[%emt 0:00:00]} 45. f6 {[%emt 0:00:00]} Qh1+ {[%emt 0:00:00]} 46. Kf4 {[%emt 0:00:00]} Qf1+ {[%emt 0:00:00]} 47. Ke4 {[%emt 0:00:00]} Qd3+ {[%emt 0:00:00]} 48. Kf4 {[%emt 0:00:00]} Qf1+ {[%emt 0:00:00]} 49. Ke3 {[%emt 0:00:00]} Qg1+ {[%emt 0:00:00]} 1/2-1/2

[Event "GER-chT Youth Countries 2020"]
[Site "Berlin"]
[Date "2020.10.04"]
[Round "7"]
[White "Schubert, Nikita"]
[Black "Zackrisson, Peter"]
[Result "1/2-1/2"]
[ECO "A61"]
[WhiteElo "1946"]
[BlackElo "1947"]
[Annotator "ChessBase"]
[PlyCount "93"]
[EventDate "2020.09.30"]
[EventType "team-tourn"]
[EventRounds "7"]
[EventCountry "GER"]
[SourceTitle "playchess.com"]
[Source "ChessBase"]
[SourceQuality "1"]
[TimeControl "30/5400+30:0"]

1. d4 {[%emt 0:00:00]} Nf6 {[%emt 0:00:00]} 2. c4 {[%emt 0:00:00]} c5 {[%emt 0:00:00]} 3. d5 {[%emt 0:00:00]} e6 4. Nf3 {[%emt 0:00:14]} exd5 {[%emt 0:00:07]} 5. cxd5 {[%emt 0:00:06]} d6 {[%emt 0:00:10]} 6. Nc3 {[%emt 0:00:11]} g6 {[%emt 0:00:12]} 7. Bf4 {[%emt 0:00:12]} Bg7 {[%emt 0:01:04]} 8. Qa4+ {[%emt 0:00:40]} Bd7 {[%emt 0:01:53]} 9. Qb3 {[%emt 0:00:18]} Qc7 {[%emt 0:02:31]} 10. e4 {[%emt 0:01:32]} O-O {[%emt 0:00:57]} 11. Nd2 {[%emt 0:01:31]} Nh5 {[%emt 0:07:59]} 12. Be3 {[%emt 0:00:19]} f5 {[%emt 0:01:23]} 13. exf5 {[%emt 0:00:35]} Bxf5 {[%emt 0:01:00]} 14. Be2 {[%emt 0:06:16]} Nf6 {[%emt 0:02:10]} 15. O-O {[%emt 0:03:06]} a6 {[%emt 0:02:57]} 16. a4 {[%emt 0:01:14]} Nbd7 {[%emt 0:02:06]} 17. Nc4 {[%emt 0:05:17]} Ng4 {[%emt 0:11:52]} 18. Bf4 {[%emt 0:26:53]} Nge5 {[%emt 0:01:20]} 19. Ne3 {[%emt 0:13:21]} Bd3 {[%emt 0:04:07]} 20. Bg3 {[%emt 0:05:25]} Rae8 {[%emt 0:25:24]} 21. Bxd3 {[%emt 0:05:23]} Nxd3 {[%emt 0:00:14]} 22. Nc4 {[%emt 0:08:30]} N7e5 {[%emt 0:04:31]} 23. Nxe5 {[%emt 0:05:01]} Bxe5 {[%emt 0:02:06]} 24. Qc2 {[%emt 0:08:18]} c4 {[%emt 0:01:30]} 25. Rab1 {[%emt 0:02:21]} Bxc3 {[%emt 0:15:00]} 26. Qxc3 {[%emt 0:01:53]} b5 {[%emt 0:02:05]} 27. axb5 {[%emt 0:01:12]} axb5 {[%emt 0:00:10]} 28. b3 {[%emt 0:01:33]} Qc5 {[%emt 0:00:27]} 29. bxc4 {[%emt 0:01:31]} bxc4 {[%emt 0:00:09]} 30. Rb7 {[%emt 0:00:28]} Rf7 {[%emt 0:00:50]} 31. Rxf7 {[%emt 1:30:37]} Kxf7 {[%emt 1:30:08]} 32. Ra1 {[%emt 0:00:46]} Nb4 {[%emt 0:04:09]} 33. Rb1 {[%emt 0:00:56]} Nxd5 {[%emt 0:03:11]} 34. Qf3+ {[%emt 0:00:05]} Kg8 {[%emt 0:01:18]} 35. h3 {[%emt 0:00:48]} Qc6 {[%emt 0:03:03]} 36. Rd1 {[%emt 0:00:35]} c3 {[%emt 0:01:20]} 37. Qxd5+ {[%emt 0:00:42]} Qxd5 {[%emt 0:00:08]} 38. Rxd5 {[%emt 0:00:08]} c2 {[%emt 0:00:35]} 39. Bf4 {[%emt 0:00:04]} Re1+ {[%emt 0:00:21]} 40. Kh2 {[%emt 0:00:03]} Rd1 {[%emt 0:00:44]} 41. Ra5 {[%emt 0:01:08]} c1=Q {[%emt 0:00:37]} 42. Bxc1 {[%emt 0:00:17]} Rxc1 {[%emt 0:00:06]} 43. Ra7 {[%emt 0:01:08]} Re1 {[%emt 0:00:00]} 44. Kg3 {[%emt 0:00:00]} Re6 {[%emt 0:00:00]} 45. h4 {[%emt 0:00:00]} Rf6 {[%emt 0:00:00]} 46. Rd7 {[%emt 0:00:00]} h5 {[%emt 0:00:00]} 47. f3 {[%emt 0:00:00]} 1/2-1/2

[Event "GER-chT Youth Countries 2020"]
[Site "Berlin"]
[Date "2020.10.04"]
[Round "7"]
[White "Chassard, Cedric"]
[Black "Lange, Jannis"]
[Result "1/2-1/2"]
[ECO "B31"]
[WhiteElo "1916"]
[BlackElo "2126"]
[Annotator "ChessBase"]
[PlyCount "87"]
[EventDate "2020.09.30"]
[EventType "team-tourn"]
[EventRounds "7"]
[EventCountry "GER"]
[SourceTitle "playchess.com"]
[Source "ChessBase"]
[SourceQuality "1"]
[TimeControl "30/5400+30:0"]

1. e4 {[%emt 0:00:00]} c5 {[%emt 0:00:00]} 2. Nf3 {[%emt 0:00:00]} Nc6 {[%emt 0:00:00]} 3. Bb5 {[%emt 0:00:00]} g6 {[%emt 0:00:00]} 4. Bxc6 {[%emt 0:00:00]} dxc6 {[%emt 0:00:00]} 5. d3 {[%emt 0:00:00]} Bg7 {[%emt 0:00:10]} 6. h3 {[%emt 0:00:00]} Nf6 {[%emt 0:00:50]} 7. Nc3 {[%emt 0:00:20]} Nd7 {[%emt 0:00:44]} 8. Be3 {[%emt 0:00:07]} e5 {[%emt 0:00:24]} 9. Qd2 {[%emt 0:00:05]} h6 {[%emt 0:00:32]} 10. O-O {[%emt 0:00:02]} b6 {[%emt 0:00:36]} 11. Nh2 {[%emt 0:00:25]} Nf8 {[%emt 0:01:09]} 12. f4 {[%emt 0:00:01]} exf4 {[%emt 0:00:56]} 13. Bxf4 {[%emt 0:00:03]} Ne6 {[%emt 0:03:20]} 14. Bg3 {[%emt 0:01:46]} Nd4 {[%emt 0:07:40]} 15. Nf3 {[%emt 0:01:24]} Be6 {[%emt 0:05:53]} 16. Rae1 {[%emt 0:02:04]} Nxf3+ {[%emt 0:10:41]} 17. Rxf3 {[%emt 0:00:16]} Bd4+ {[%emt 0:00:13]} 18. Kh1 {[%emt 0:00:31]} Qg5 {[%emt 0:07:06]} 19. Bf4 {[%emt 0:08:30]} Qh5 {[%emt 0:02:10]} 20. Be3 {[%emt 0:12:29]} Be5 {[%emt 0:17:28]} 21. Bf4 {[%emt 0:04:00]} Bd4 {[%emt 0:01:12]} 22. Be3 {[%emt 0:10:52]} g5 {[%emt 0:03:07]} 23. Rg3 {[%emt 0:25:46]} Be5 {[%emt 0:01:22]} 24. Ne2 {[%emt 0:02:03]} O-O-O {[%emt 0:02:56]} 25. Rf3 {[%emt 0:07:51]} g4 {[%emt 0:10:50]} 26. Nf4 {[%emt 0:04:29]} Bxf4 {[%emt 0:05:12]} 27. Rxf4 {[%emt 0:00:10]} gxh3 {[%emt 0:00:10]} 28. g3 {[%emt 0:01:31]} Qe5 {[%emt 0:05:53]} 29. Qc3 {[%emt 0:02:59]} Qxc3 {[%emt 0:03:44]} 30. bxc3 {[%emt 0:00:03]} h5 {[%emt 0:00:58]} 31. Kh2 {[%emt 1:30:33]} Rdg8 {[%emt 1:31:42]} 32. Rg1 {[%emt 0:01:26]} Kb7 {[%emt 0:02:15]} 33. a4 {[%emt 0:01:51]} c4 {[%emt 0:03:47]} 34. a5 {[%emt 0:03:06]} b5 {[%emt 0:00:11]} 35. Bd4 {[%emt 0:01:16]} Rh7 {[%emt 0:00:39]} 36. Bc5 {[%emt 0:01:03]} Rd8 {[%emt 0:00:32]} 37. d4 {[%emt 0:00:20]} a6 {[%emt 0:00:21]} 38. Rgf1 {[%emt 0:04:07]} Rd7 {[%emt 0:00:48]} 39. Re1 {[%emt 0:01:41]} Rg7 {[%emt 0:01:00]} 40. Rg1 {[%emt 0:01:35]} Rg5 {[%emt 0:00:15]} 41. Ba3 {[%emt 0:01:32]} Rg6 {[%emt 0:02:06]} 42. Bb4 {[%emt 0:00:41]} Rg8 {[%emt 0:00:43]} 43. Bc5 {[%emt 0:02:09]} Re8 {[%emt 0:01:03]} 44. Bb4 {[%emt 0:00:38]} 1/2-1/2

[Event "GER-chT Youth Countries 2020"]
[Site "Berlin"]
[Date "2020.10.04"]
[Round "7"]
[White "Dietz, Kristin"]
[Black "Bashylina, Luisa"]
[Result "0-1"]
[ECO "B42"]
[WhiteElo "1913"]
[BlackElo "2005"]
[Annotator "ChessBase"]
[PlyCount "94"]
[EventDate "2020.09.30"]
[EventType "team-tourn"]
[EventRounds "7"]
[EventCountry "GER"]
[SourceTitle "playchess.com"]
[Source "ChessBase"]
[SourceQuality "1"]
[TimeControl "30/5400+30:0"]

1. e4 c5 2. Nf3 {[%emt 0:00:00]} e6 {[%emt 0:00:00]} 3. d4 {[%emt 0:00:00]} cxd4 {[%emt 0:00:00]} 4. Nxd4 {[%emt 0:00:00]} a6 {[%emt 0:00:32]} 5. Bd3 Qc7 {[%emt 0:00:17]} 6. Nc3 {[%emt 0:00:54]} Nc6 {[%emt 0:06:12]} 7. Nb3 {[%emt 0:03:53]} g6 {[%emt 0:00:47]} 8. f4 {[%emt 0:00:54]} Bg7 {[%emt 0:01:32]} 9. Bd2 {[%emt 0:02:27]} Nge7 {[%emt 0:02:14]} 10. Qf3 {[%emt 0:02:46]} d6 {[%emt 0:07:14]} 11. g4 {[%emt 0:02:11]} Bd7 12. O-O-O {[%emt 0:00:35]} Nb4 {[%emt 0:08:06]} 13. Kb1 {[%emt 0:02:59]} O-O-O {[%emt 0:12:56]} 14. Rhe1 {[%emt 0:06:36]} Bc6 {[%emt 0:11:44]} 15. Qf2 {[%emt 0:13:19]} f5 {[%emt 0:09:55]} 16. Na4 {[%emt 0:00:09]} Bxa4 {[%emt 0:00:15]} 17. Bxb4 {[%emt 0:01:43]} Nc6 {[%emt 0:01:47]} 18. Bd2 {[%emt 0:01:17]} fxg4 {[%emt 0:01:57]} 19. Be3 {[%emt 0:05:13]} Qf7 {[%emt 0:07:39]} 20. Qe2 {[%emt 0:06:22]} Nb4 {[%emt 0:00:41]} 21. Qxg4 {[%emt 0:00:28]} Nxd3 {[%emt 0:04:09]} 22. Rxd3 {[%emt 0:03:49]} Kb8 {[%emt 0:04:33]} 23. Bb6 {[%emt 0:01:35]} Rd7 {[%emt 0:03:36]} 24. Red1 {[%emt 0:01:25]} Bxb3 {[%emt 0:03:43]} 25. axb3 {[%emt 0:05:51]} Bh6 {[%emt 0:00:30]} 26. Rxd6 {[%emt 0:00:05]} Rxd6 {[%emt 0:00:33]} 27. Rxd6 {[%emt 0:06:13]} Bxf4 {[%emt 0:01:00]} 28. Rxe6 {[%emt 0:02:26]} Bxh2 {[%emt 0:01:42]} 29. Qh3 Bf4 {[%emt 0:01:45]} 30. Qc3 {[%emt 0:03:54]} Rf8 {[%emt 0:03:30]} 31. Qc5 Re8 32. Rxe8+ {[%emt 1:35:00]} Qxe8 {[%emt 1:30:33]} 33. Qc3 g5 {[%emt 0:01:30]} 34. Qg7 {[%emt 0:04:55]} h5 {[%emt 0:00:16]} 35. Qh6 {[%emt 0:00:17]} h4 36. e5 Bxe5 {[%emt 0:02:53]} 37. Qxg5 {[%emt 0:01:49]} h3 {[%emt 0:00:13]} 38. c3 {[%emt 0:01:34]} h2 39. Qg2 Qh8 {[%emt 0:01:52]} 40. Qh1 {[%emt 0:00:34]} Qh6 {[%emt 0:00:52]} 41. Bd4 {[%emt 0:00:19]} Bxd4 {[%emt 0:00:16]} 42. cxd4 {[%emt 0:00:04]} Qg6+ {[%emt 0:00:14]} 43. Ka2 {[%emt 0:00:50]} Qg1 44. Qf3 {[%emt 0:00:13]} h1=Q {[%emt 0:01:43]} 45. Qf8+ Ka7 46. Qc5+ {[%emt 0:00:45]} b6 {[%emt 0:00:17]} 47. Qc7+ {[%emt 0:00:18]} Qb7 {[%emt 0:00:06]} 0-1

[Event "GER-chT Youth Countries 2020"]
[Site "Berlin"]
[Date "2020.10.04"]
[Round "7"]
[White "Kempe, Caius Emilian"]
[Black "Koenig, Emmilie"]
[Result "1-0"]
[ECO "E83"]
[WhiteElo "1910"]
[BlackElo "1518"]
[Annotator "ChessBase"]
[PlyCount "43"]
[EventDate "2020.09.30"]
[EventType "team-tourn"]
[EventRounds "7"]
[EventCountry "GER"]
[SourceTitle "playchess.com"]
[Source "ChessBase"]
[SourceQuality "1"]
[TimeControl "30/5400+30:0"]

1. d4 {[%emt 0:00:00]} Nf6 {[%emt 0:00:00]} 2. c4 {[%emt 0:00:00]} d6 {[%emt 0:00:00]} 3. Nc3 {[%emt 0:00:00]} g6 {[%emt 0:00:29]} 4. e4 {[%emt 0:00:00]} Bg7 {[%emt 0:00:29]} 5. f3 {[%emt 0:00:11]} Nc6 {[%emt 0:01:10]} 6. Be3 {[%emt 0:01:01]} O-O {[%emt 0:01:18]} 7. Nge2 {[%emt 0:00:34]} e5 {[%emt 0:02:58]} 8. d5 {[%emt 0:00:16]} Ne7 {[%emt 0:00:33]} 9. Qd2 {[%emt 0:00:18]} Re8 {[%emt 0:04:21]} 10. g4 {[%emt 0:02:08]} Kh8 {[%emt 0:06:07]} 11. h4 {[%emt 0:00:23]} h5 {[%emt 0:01:08]} 12. O-O-O {[%emt 0:11:57]} Neg8 {[%emt 0:08:58]} 13. Ng3 {[%emt 0:00:59]} Bxg4 {[%emt 0:05:17]} 14. fxg4 {[%emt 0:01:07]} Nxg4 {[%emt 0:00:32]} 15. Kb1 {[%emt 0:01:09]} Nxe3 {[%emt 0:01:41]} 16. Qxe3 {[%emt 0:00:01]} Nf6 {[%emt 0:04:35]} 17. Be2 {[%emt 0:01:13]} Kh7 {[%emt 0:03:51]} 18. Rdf1 {[%emt 0:01:39]} Qd7 {[%emt 0:02:50]} 19. Rhg1 {[%emt 0:04:30]} Rh8 {[%emt 0:04:18]} 20. Qg5 {[%emt 0:03:01]} Kg8 {[%emt 0:03:08]} 21. Nf5 {[%emt 0:02:51]} Nh7 {[%emt 0:02:14]} 22. Ne7+ {[%emt 0:03:55]} 1-0

[Event "GER-chT Youth Countries 2020"]
[Site "Berlin"]
[Date "2020.10.04"]
[Round "7"]
[White "Weidenhoefer, Max"]
[Black "Burian, Simon"]
[Result "0-1"]
[ECO "B90"]
[WhiteElo "1897"]
[BlackElo "2113"]
[Annotator "ChessBase"]
[PlyCount "64"]
[EventDate "2020.09.30"]
[EventType "team-tourn"]
[EventRounds "7"]
[EventCountry "GER"]
[SourceTitle "playchess.com"]
[Source "ChessBase"]
[SourceQuality "1"]
[TimeControl "30/5400+30:0"]

1. e4 {[%emt 0:00:00]} c5 {[%emt 0:00:00]} 2. Nf3 {[%emt 0:00:00]} d6 {[%emt 0:00:00]} 3. d4 {[%emt 0:00:00]} cxd4 {[%emt 0:00:00]} 4. Nxd4 {[%emt 0:00:00]} Nf6 {[%emt 0:00:00]} 5. Nc3 {[%emt 0:00:00]} a6 {[%emt 0:00:00]} 6. Be3 {[%emt 0:00:00]} e5 {[%emt 0:00:01]} 7. Nb3 {[%emt 0:00:00]} Be7 {[%emt 0:00:05]} 8. f3 {[%emt 0:00:06]} Be6 {[%emt 0:00:04]} 9. Qd2 {[%emt 0:00:04]} O-O {[%emt 0:00:05]} 10. g4 {[%emt 0:00:07]} d5 {[%emt 0:00:10]} 11. g5 {[%emt 0:27:19]} Nxe4 {[%emt 0:01:12]} 12. fxe4 {[%emt 0:04:38]} d4 {[%emt 0:00:06]} 13. h4 {[%emt 0:02:52]} dxe3 {[%emt 0:04:44]} 14. Qxe3 {[%emt 0:05:28]} Nc6 {[%emt 0:04:22]} 15. Nd5 {[%emt 0:11:43]} Bxd5 {[%emt 0:02:21]} 16. O-O-O {[%emt 0:00:56]} Nb4 {[%emt 0:05:52]} 17. exd5 {[%emt 0:11:12]} Qc7 {[%emt 0:06:24]} 18. Qd2 {[%emt 0:09:41]} Rfd8 {[%emt 0:04:17]} 19. Bg2 {[%emt 0:00:30]} a5 {[%emt 0:05:40]} 20. Kb1 {[%emt 0:03:08]} a4 {[%emt 0:01:29]} 21. Nc1 {[%emt 0:00:49]} a3 {[%emt 0:01:27]} 22. b3 {[%emt 0:00:22]} Rac8 {[%emt 0:02:43]} 23. c4 {[%emt 0:05:59]} b5 {[%emt 0:01:24]} 24. Bf1 {[%emt 0:00:33]} bxc4 {[%emt 0:01:01]} 25. bxc4 {[%emt 0:01:03]} Rb8 {[%emt 0:02:21]} 26. Ka1 {[%emt 0:02:24]} Na6 {[%emt 0:02:38]} 27. Nb3 {[%emt 0:00:50]} Nc5 {[%emt 0:00:21]} 28. Rb1 {[%emt 0:00:39]} Na4 {[%emt 0:01:27]} 29. Rh3 {[%emt 0:02:44]} Bb4 {[%emt 0:00:48]} 30. Qc1 {[%emt 0:00:19]} e4 {[%emt 0:00:10]} 31. Nd4 {[%emt 1:37:21]} Qe5 {[%emt 1:30:09]} 32. Qd1 {[%emt 0:00:47]} Bc5 0-1

[Event "GER-chT Youth Countries 2020"]
[Site "Berlin"]
[Date "2020.10.04"]
[Round "7"]
[White "Halabi, Ibrahim"]
[Black "Hecht, Jonas Christian"]
[Result "1/2-1/2"]
[ECO "C54"]
[WhiteElo "1895"]
[BlackElo "1764"]
[Annotator "NA"]
[PlyCount "92"]
[EventDate "2020.09.30"]
[EventType "team-tourn"]
[EventRounds "7"]
[EventCountry "GER"]
[SourceTitle "playchess.com"]
[Source "ChessBase"]
[SourceQuality "1"]
[TimeControl "30/5400+30:0"]

1. e4 {[%emt 0:00:00]} e5 {[%emt 0:00:00]} 2. Nf3 {[%emt 0:00:00]} Nc6 {[%emt 0:00:00]} 3. Bc4 {[%emt 0:00:00]} Bc5 {[%emt 0:00:00]} 4. c3 {[%emt 0:00:00]} Nf6 {[%emt 0:00:00]} 5. d3 {[%emt 0:00:03]} O-O {[%emt 0:00:07]} 6. Nbd2 {[%emt 0:00:15]} d5 {[%emt 0:00:26]} 7. exd5 {[%emt 0:00:13]} Nxd5 {[%emt 0:00:07]} 8. O-O {[%emt 0:02:23]} Nb6 {[%emt 0:00:42]} 9. Qe2 {[%emt 0:05:31]} Bd6 {[%emt 0:04:54]} 10. Bb3 {[%emt 0:04:07]} Bg4 {[%emt 0:03:23]} 11. Ne4 {[%emt 0:05:48]} Kh8 {[%emt 0:02:50]} 12. Ng3 {[%emt 0:00:57]} Qf6 {[%emt 0:02:24]} 13. Bd1 {[%emt 0:05:40]} Qe7 {[%emt 0:09:07]} 14. h3 {[%emt 0:01:09]} Be6 {[%emt 0:00:21]} 15. Ne4 {[%emt 0:06:05]} f5 {[%emt 0:02:06]} 16. Nxd6 {[%emt 0:00:08]} cxd6 {[%emt 0:00:05]} 17. Bc2 {[%emt 0:07:11]} h6 {[%emt 0:03:56]} 18. Be3 {[%emt 0:03:41]} g5 {[%emt 0:04:32]} 19. Bxb6 {[%emt 0:05:55]} axb6 {[%emt 0:00:29]} 20. a3 {[%emt 0:04:37]} Qf6 {[%emt 0:10:25]} 21. Nh2 {[%emt 0:04:26]} Ne7 {[%emt 0:02:09]} 22. Qf3 {[%emt 0:08:57]} Nd5 {[%emt 0:01:35]} 23. Bb3 {[%emt 0:04:35]} Qf7 {[%emt 0:03:16]} 24. Bxd5 {[%emt 0:01:40]} Bxd5 {[%emt 0:00:30]} 25. Qe3 {[%emt 0:01:00]} b5 {[%emt 0:02:42]} 26. f3 {[%emt 0:01:43]} Rae8 {[%emt 0:10:22]} 27. a4 {[%emt 0:02:11]} Bc6 {[%emt 0:02:54]} 28. axb5 {[%emt 0:00:41]} Bxb5 {[%emt 0:00:20]} 29. c4 {[%emt 0:00:39]} Bc6 {[%emt 0:00:24]} 30. b4 {[%emt 0:00:37]} Qc7 {[%emt 0:05:59]} 31. b5 {[%emt 1:31:39]} Bd7 {[%emt 1:30:13]} 32. Ra7 {[%emt 0:01:49]} f4 {[%emt 0:01:31]} 33. Qf2 {[%emt 0:02:40]} Bf5 {[%emt 0:02:34]} 34. Rd1 {[%emt 0:00:46]} Ra8 {[%emt 0:02:00]} 35. Kh1 {[%emt 0:01:24]} Rfb8 {[%emt 0:02:38]} 36. Qa2 {[%emt 0:01:16]} Rxa7 {[%emt 0:08:52]} 37. Qxa7 {[%emt 0:00:07]} Rc8 {[%emt 0:00:19]} 38. Ng4 {[%emt 0:02:22]} Kg7 {[%emt 0:02:25]} 39. Nf2 {[%emt 0:02:53]} Qc5 {[%emt 0:00:57]} 40. Qxb7+ {[%emt 0:07:19]} Rc7 {[%emt 0:00:53]} 41. Qb8 {[%emt 0:04:49]} Rc8 {[%emt 0:00:10]} 42. Qb7+ {[%emt 0:00:00]} Rc7 {[%emt 0:00:00]} 43. Qd5 {[%emt 0:00:00]} Qxf2 {[%emt 0:00:00]} 44. Qxd6 {[%emt 0:00:00]} Qc5 {[%emt 0:00:00]} 45. Qxc5 {[%emt 0:00:00]} Rxc5 {[%emt 0:00:00]} 46. b6 {[%emt 0:00:00]} Rc8 {[%emt 0:00:00]} 1/2-1/2

[Event "GER-chT Youth Countries 2020"]
[Site "Berlin"]
[Date "2020.10.04"]
[Round "7"]
[White "Simon, Tessa"]
[Black "Viet, Silas"]
[Result "1/2-1/2"]
[ECO "B56"]
[WhiteElo "1860"]
[BlackElo "1846"]
[Annotator "NA"]
[PlyCount "110"]
[EventDate "2020.09.30"]
[EventType "team-tourn"]
[EventRounds "7"]
[EventCountry "GER"]
[SourceTitle "playchess.com"]
[Source "ChessBase"]
[SourceQuality "1"]
[TimeControl "30/5400+30:0"]

1. e4 {[%emt 0:00:00]} c5 {[%emt 0:00:00]} 2. Nf3 {[%emt 0:00:00]} d6 {[%emt 0:00:00]} 3. d4 {[%emt 0:00:00]} cxd4 {[%emt 0:00:00]} 4. Nxd4 {[%emt 0:00:00]} Nf6 {[%emt 0:00:00]} 5. Nc3 {[%emt 0:00:00]} Nc6 {[%emt 0:00:00]} 6. f3 {[%emt 0:00:25]} e5 {[%emt 0:00:02]} 7. Nb3 {[%emt 0:00:12]} Be7 {[%emt 0:00:07]} 8. Be3 {[%emt 0:00:22]} O-O {[%emt 0:00:09]} 9. Qd2 {[%emt 0:00:16]} a5 {[%emt 0:00:11]} 10. Bb5 {[%emt 0:00:59]} Be6 {[%emt 0:00:10]} 11. O-O-O {[%emt 0:01:19]} Qb8 {[%emt 0:00:26]} 12. g4 {[%emt 0:06:48]} Nb4 {[%emt 0:20:44]} 13. a3 {[%emt 0:09:49]} Rc8 {[%emt 0:02:45]} 14. Kb1 {[%emt 0:01:25]} d5 {[%emt 0:05:01]} 15. g5 {[%emt 0:18:08]} Nxe4 {[%emt 0:28:09]} 16. fxe4 {[%emt 0:01:58]} d4 {[%emt 0:01:21]} 17. Nxd4 {[%emt 0:05:55]} exd4 {[%emt 0:01:52]} 18. Bxd4 {[%emt 0:00:22]} Nc6 {[%emt 0:03:10]} 19. Bb6 {[%emt 0:09:41]} Qe5 {[%emt 0:09:44]} 20. h4 {[%emt 0:07:33]} Bf8 {[%emt 0:01:46]} 21. Rdg1 {[%emt 0:03:52]} g6 {[%emt 0:05:17]} 22. h5 {[%emt 0:08:53]} Bg7 {[%emt 0:00:13]} 23. hxg6 {[%emt 0:01:07]} hxg6 {[%emt 0:00:10]} 24. Bd3 {[%emt 0:06:15]} Nd4 {[%emt 0:01:56]} 25. Rf1 {[%emt 0:04:21]} Rc6 {[%emt 0:01:31]} 26. Bxd4 {[%emt 0:00:57]} Qxd4 {[%emt 0:00:07]} 27. Nd1 {[%emt 0:00:57]} b5 {[%emt 0:03:52]} 28. c3 {[%emt 0:02:39]} Qe5 {[%emt 0:00:44]} 29. Qh2 {[%emt 0:03:06]} b4 {[%emt 0:08:30]} 30. Qxe5 {[%emt 0:02:57]} Bxe5 {[%emt 0:00:08]} 31. cxb4 {[%emt 1:31:21]} axb4 {[%emt 1:30:24]} 32. Bb5 {[%emt 0:00:37]} Rc5 {[%emt 0:02:54]} 33. a4 {[%emt 0:00:17]} Bd4 {[%emt 0:02:02]} 34. Nf2 {[%emt 0:02:15]} Rxg5 {[%emt 0:01:18]} 35. Nd3 {[%emt 0:00:53]} Bb3 {[%emt 0:00:55]} 36. Nxb4 {[%emt 0:01:01]} Bxa4 {[%emt 0:00:45]} 37. Bxa4 {[%emt 0:00:49]} Rxa4 {[%emt 0:00:42]} 38. Nc2 {[%emt 0:00:56]} Bg7 {[%emt 0:00:47]} 39. Rh4 {[%emt 0:00:08]} Rga5 {[%emt 0:00:51]} 40. Rhf4 {[%emt 0:00:46]} Ra7 {[%emt 0:00:32]} 41. R1f3 {[%emt 0:00:00]} Be5 {[%emt 0:00:00]} 42. Rg4 {[%emt 0:00:00]} Rb7 {[%emt 0:00:00]} 43. b3 {[%emt 0:00:00]} Kg7 {[%emt 0:00:00]} 44. Kc1 {[%emt 0:00:00]} Ra2 {[%emt 0:00:00]} 45. Rg2 {[%emt 0:00:00]} Rc7 {[%emt 0:00:00]} 46. Kd1 {[%emt 0:00:00]} Kf8 {[%emt 0:00:00]} 47. Rd3 {[%emt 0:00:00]} Ke7 {[%emt 0:00:00]} 48. Ne3 {[%emt 0:00:00]} Rxg2 {[%emt 0:00:00]} 49. Nxg2 {[%emt 0:00:00]} Rd7 {[%emt 0:00:00]} 50. Ke2 {[%emt 0:00:00]} Rxd3 {[%emt 0:00:00]} 51. Kxd3 {[%emt 0:00:00]} Kd6 {[%emt 0:00:00]} 52. Ne3 {[%emt 0:00:00]} Kc5 {[%emt 0:00:00]} 53. Nc2 {[%emt 0:01:21]} g5 {[%emt 0:00:00]} 54. Ke3 g4 {[%emt 0:00:00]} 55. Ne1 Bc7 {[%emt 0:00:00]} 1/2-1/2